bitfinex/quotes_SOLUSD_20220128
["timestamp","ask_amount","ask_price","bid_price","bid_amount"]
[1643342312025,3.00097005,92.649,92.59,46.71345012]
[1643342312225,3.25097005,92.649,92.59,46.71345012]
[1643342312426,3.00097005,92.648,92.59,46.71345012]
[1643342312828,0.25,92.647,92.64,0.679327]
[1643342313026,3.00097005,92.646,92.59,46.71345012]
[1643342313526,0.25,92.645,92.59,46.71345012]
[1643342313727,3.00097005,92.644,92.59,46.71345012]
[1643342314127,0.25,92.643,92.59,46.71345012]
[1643342314326,3.00097005,92.642,92.59,46.71345012]
[1643342314737,0.25,92.641,92.59,46.71345012]
[1643342314928,3.00097005,92.64,92.521,22.8109]
[1643342315127,3.00097005,92.64,92.52,15.58]
[1643342315331,3.00097005,92.64,92.461,16.1291]
[1643342315332,2.99695242,92.606,92.49,15.58]
[1643342315529,2.99695242,92.594,92.481,48.0618]
[1643342315726,6.0,92.596,92.48,15.58]
[1643342315727,2.99695242,92.59,92.48,15.58]
[1643342315928,6.0,92.584,92.482,40.66176469]
[1643342316130,108.2,92.559,92.482,40.66176469]
[1643342316328,108.2,92.557,92.482,40.66176469]
[1643342316529,6.0,92.547,92.482,40.66176469]
[1643342316927,6.25,92.546,92.482,40.66176469]
[1643342317127,9.20669142,92.546,92.482,40.66176469]
[1643342317327,6.88309308,92.539,92.482,40.66176469]
[1643342317738,3.20669142,92.538,92.482,40.66176469]
[1643342318130,2.95669142,92.537,92.482,40.66176469]
[1643342318333,0.25,92.536,92.482,40.66176469]
[1643342318729,3.20669142,92.536,92.482,40.66176469]
[1643342319529,0.25,92.536,92.482,40.66176469]
[1643342319930,0.25,92.545,92.482,40.66176469]
[1643342320533,6.25,92.545,92.482,40.66176469]
[1643342320934,0.25,92.545,92.482,40.66176469]
[1643342322533,0.25,92.549,92.482,40.66176469]
[1643342322734,0.25,92.559,92.482,40.66176469]
[1643342324435,2.95669142,92.558,92.482,40.66176469]
[1643342324834,0.25,92.557,92.482,40.66176469]
[1643342325236,2.95669142,92.556,92.482,40.66176469]
[1643342325435,0.25,92.557,92.482,40.66176469]
[1643342325636,0.25,92.555,92.482,40.66176469]
[1643342325938,0.25,92.557,92.482,40.66176469]
[1643342326142,16.2293,92.54,92.482,40.66176469]
[1643342326336,4.10745493,92.539,92.482,40.66176469]
[1643342326540,7.06414635,92.539,92.482,40.66176469]
[1643342326937,2.95669142,92.538,92.482,40.66176469]
[1643342327338,0.25,92.537,92.482,40.66176469]
[1643342327840,2.95669142,92.536,92.43,15.58]
[1643342328038,2.95669142,92.536,92.44,6.0]
[1643342328238,0.25,92.535,92.441,0.25]
[1643342328739,0.25,92.535,92.441,43.24333339]
[1643342329037,0.25,92.535,92.451,6.0]
[1643342329637,6.0,92.527,92.451,6.0]
[1643342329838,0.25,92.526,92.452,0.25]
[1643342330437,0.25,92.526,92.451,5.5]
[1643342331140,0.25,92.527,92.451,5.5]
[1643342331840,6.0,92.528,92.441,42.99333339]
[1643342332039,6.0,92.518,92.441,42.99333339]
[1643342332339,28.08297255,92.517,92.441,42.99333339]
[1643342334439,0.25,92.517,92.441,42.99333339]
[1643342334942,16.2337,92.52,92.442,0.25]
[1643342335642,30.51251677,92.519,92.442,0.25]
[1643342336243,0.25,92.518,92.441,42.99333339]
[1643342336442,6.0,92.509,92.441,42.99333339]
[1643342336743,108.2,92.508,92.441,42.99333339]
[1643342336942,108.45,92.508,92.441,42.99333339]
[1643342337144,6.0,92.498,92.441,42.99333339]
[1643342337344,0.25,92.497,92.441,42.99333339]
[1643342338445,0.25,92.499,92.441,42.99333339]
[1643342338645,108.2,92.534,92.442,0.25]
[1643342339046,6.0,92.524,92.442,0.25]
[1643342339545,6.0,92.515,92.442,0.25]
[1643342339746,0.25,92.514,92.442,0.25]
[1643342341352,0.25,92.523,92.442,0.25]
[1643342341552,23.1673,92.524,92.442,0.25]
[1643342341750,23.1673,92.524,92.441,42.99333339]
[1643342341953,16.2335,92.52,92.441,42.99333339]
[1643342342152,6.0,92.514,92.441,42.99333339]
[1643342342350,5.11046512,92.509,92.441,42.99333339]
[1643342342951,0.25,92.508,92.441,42.99333339]
[1643342343651,16.236,92.5,92.441,42.99333339]
[1643342343854,0.25,92.499,92.441,42.99333339]
[1643342344152,1.49338286,92.524,92.451,6.0]
[1643342344352,1.49338286,92.553,92.452,0.25]
[1643342344552,16.228,92.55,92.46,6.0]
[1643342344750,16.228,92.55,92.47,15.58]
[1643342344974,1.49338286,92.557,92.47,15.58]
[1643342345151,1.49338286,92.559,92.481,40.94032272]
[1643342345451,1.49338286,92.552,92.482,0.25]
[1643342345650,2.99695242,92.576,92.482,0.25]
[1643342345651,1.49338286,92.55,92.491,6.0]
[1643342345850,0.25,92.549,92.492,0.25]
[1643342346050,0.25,92.549,92.492,6.25]
[1643342346456,0.25,92.549,92.493,6.0]
[1643342346651,1.49338286,92.557,92.492,2.33483275]
[1643342346853,1.49338286,92.559,92.503,38.66737113]
[1643342347151,1.49338286,92.565,92.513,6.0]
[1643342347354,1.49338286,92.567,92.513,6.0]
[1643342347557,1.49338286,92.568,92.514,6.0]
[1643342348160,0.25,92.567,92.504,2.08483275]
[1643342348356,0.25,92.568,92.514,6.0]
[1643342348555,0.25,92.568,92.505,0.25]
[1643342348756,0.25,92.569,92.514,6.0]
[1643342348957,0.25,92.569,92.505,0.25]
[1643342349157,0.25,92.57,92.505,0.25]
[1643342349457,1.49338286,92.572,92.505,0.25]
[1643342349458,0.25,92.571,92.514,6.0]
[1643342349658,0.25,92.571,92.513,6.0]
[1643342349859,0.25,92.572,92.513,6.0]
[1643342350259,0.25,92.574,92.513,6.0]
[1643342350459,0.25,92.574,92.517,38.26142117]
[1643342350862,16.2167,92.61,92.518,0.25]
[1643342351062,4.46909302,92.628,92.53,15.58]
[1643342351267,46.4644,92.649,92.53,15.58]
[1643342351268,2.98009437,92.648,92.531,0.25]
[1643342351464,4.46909302,92.66,92.54,200.76]
[1643342351662,2.98104413,92.666,92.55,15.58]
[1643342351961,24.58491659,92.665,92.551,45.02785851]
[1643342352162,2.98104413,92.664,92.56,6.0]
[1643342352362,2.98104413,92.666,92.57,15.58]
[1643342352586,2.98104413,92.666,92.58,6.0]
[1643342352784,48.2011,92.689,92.59,15.58]
[1643342352984,48.2011,92.689,92.6,6.0]
[1643342353183,2.97554743,92.688,92.61,15.58]
[1643342353385,2.97554743,92.688,92.611,0.25]
[1643342353583,15.58,92.73,92.62,6.0]
[1643342353584,4.46909302,92.72,92.62,6.0]
[1643342353785,1.47554743,92.729,92.63,15.58]
[1643342353989,94.3047392,92.772,92.64,6.0]
[1643342354185,94.3047392,92.772,92.65,210.34]
[1643342354385,30.74050798,92.77,92.651,0.25]
[1643342354586,94.3047392,92.772,92.66,6.0]
[1643342354886,94.3047392,92.772,92.67,210.34]
[1643342355086,94.3047392,92.772,92.69,194.76]
[1643342355286,94.3047392,92.772,92.7,15.58]
[1643342355485,94.3047392,92.772,92.701,40.66433439]
[1643342355685,6.72652348,92.795,92.701,40.66433439]
[1643342355884,25.40683838,92.781,92.711,6.0]
[1643342356087,25.40683838,92.781,92.721,42.76858223]
[1643342356289,23.7258,92.833,92.721,42.76858223]
[1643342356489,23.7258,92.833,92.722,0.25]
[1643342356688,6.0,92.823,92.722,0.25]
[1643342357286,25.39864344,92.822,92.722,0.25]
[1643342357488,6.0,92.812,92.722,0.25]
[1643342357688,6.0,92.812,92.731,6.0]
[1643342357887,6.0,92.812,92.732,0.25]
[1643342358088,6.0,92.823,92.732,0.25]
[1643342358691,23.93793485,92.822,92.732,0.25]
[1643342359090,6.0,92.812,92.732,0.25]
[1643342360287,0.25,92.811,92.732,0.25]
[1643342360688,0.25,92.811,92.731,6.0]
[1643342361191,0.25,92.811,92.73,15.58]
[1643342362289,9.79987225,92.799,92.73,15.58]
[1643342362490,9.79987225,92.799,92.721,42.76858223]
[1643342362688,6.0,92.789,92.721,42.76858223]
[1643342362889,0.25,92.788,92.721,42.76858223]
[1643342363890,0.25,92.788,92.681,16.3758]
[1643342364095,2.95669142,92.77,92.69,15.58]
[1643342364293,0.25,92.769,92.69,15.58]
[1643342364494,6.0,92.76,92.69,15.58]
[1643342364692,111.9,92.759,92.65,194.76]
[1643342364896,9.79987225,92.736,92.651,35.08646976]
[1643342365098,9.79987225,92.736,92.61,194.76]
[1643342365099,21.47849158,92.736,92.61,15.58]
[1643342365292,6.0,92.726,92.62,15.58]
[1643342365496,6.0,92.725,92.62,15.58]
[1643342365793,20.88531075,92.725,92.62,15.58]
[1643342365993,14.63531075,92.724,92.62,15.58]
[1643342366194,23.93793485,92.715,92.621,40.61070527]
[1643342366392,16.2002,92.71,92.621,40.61070527]
[1643342366793,3.20669142,92.709,92.621,40.61070527]
[1643342367198,2.95669142,92.708,92.62,15.58]
[1643342367397,6.0,92.699,92.59,15.58]
[1643342367594,6.0,92.69,92.584,2.0733707]
[1643342367797,0.25,92.689,92.584,2.0733707]
[1643342368097,6.0,92.688,92.58,15.58]
[1643342368296,0.25,92.687,92.581,40.28186925]
[1643342368496,6.0,92.679,92.581,40.28186925]
[1643342368696,6.0,92.678,92.581,40.28186925]
[1643342368897,6.0,92.677,92.582,0.25]
[1643342369198,16.2066,92.67,92.56,15.58]
[1643342369396,108.45,92.669,92.55,15.58]
[1643342369597,6.0,92.659,92.549,6.0]
[1643342369797,0.25,92.658,92.538,6.0]
[1643342369999,6.0,92.65,92.55,6.0]
[1643342370200,29.93793485,92.65,92.551,39.25705154]
[1643342370398,16.2146,92.64,92.551,39.25705154]
[1643342370597,9.79987225,92.629,92.551,39.25705154]
[1643342370797,0.25,92.628,92.551,39.25705154]
[1643342370999,6.0,92.619,92.551,39.25705154]
[1643342371299,0.25,92.618,92.551,39.25705154]
[1643342372101,23.93793485,92.609,92.551,39.25705154]
[1643342372303,0.25,92.608,92.551,39.25705154]
[1643342375004,6.0,92.599,92.551,39.25705154]
[1643342375403,0.25,92.598,92.53,12.98]
[1643342375605,12.63,92.598,92.52,12.98]
[1643342375806,6.0,92.588,92.495,2.0733707]
[1643342376006,6.0,92.588,92.505,6.0]
[1643342376204,0.25,92.587,92.505,6.0]
[1643342376404,10.04987225,92.587,92.506,39.2636129]
[1643342376604,6.0,92.577,92.516,6.0]
[1643342376807,0.25,92.576,92.516,6.0]
[1643342377006,6.0,92.577,92.516,6.0]
[1643342377205,77.9176,92.619,92.517,0.25]
[1643342377405,77.9176,92.619,92.517,2.3233707]
[1643342377703,6.0,92.609,92.518,2.0733707]
[1643342378104,27.58031206,92.608,92.516,6.0]
[1643342378303,0.25,92.607,92.517,0.25]
[1643342378506,6.0,92.598,92.517,0.25]
[1643342379008,0.25,92.597,92.517,0.25]
[1643342380405,16.2217,92.59,92.517,0.25]
[1643342380605,6.15749504,92.589,92.517,0.25]
[1643342380804,6.40749504,92.589,92.517,0.25]
[1643342381005,6.0,92.579,92.517,0.25]
[1643342381405,0.25,92.578,92.517,0.25]
[1643342381606,6.0,92.579,92.517,0.25]
[1643342381905,23.9089,92.618,92.517,0.25]
[1643342381906,23.9089,92.618,92.52,12.98]
[1643342382105,70.5127,92.65,92.53,6.0]
[1643342382309,70.5127,92.65,92.531,0.25]
[1643342382608,70.5127,92.65,92.531,8.3233707]
[1643342382806,33.59696126,92.628,92.532,37.31246019]
[1643342383005,33.84696126,92.628,92.532,37.31246019]
[1643342383205,33.84696126,92.628,92.533,2.3233707]
[1643342383706,33.84696126,92.628,92.534,2.0733707]
[1643342383904,33.84696126,92.628,92.535,0.25]
[1643342384104,33.84696126,92.628,92.534,2.0733707]
[1643342384304,33.84696126,92.628,92.532,35.23908949]
[1643342384305,16.2166,92.62,92.532,35.23908949]
[1643342384506,6.0,92.61,92.542,6.0]
[1643342384704,6.0,92.61,92.507,2.0733707]
[1643342384908,0.25,92.609,92.517,6.0]
[1643342385105,48.305,92.609,92.517,6.0]
[1643342385310,60.965,92.609,92.517,6.0]
[1643342385506,108.2,92.598,92.481,117.69493127]
[1643342385706,108.2,92.598,92.481,73.81864145]
[1643342385907,6.0,92.588,92.481,73.81864145]
[1643342386106,16.2261,92.56,92.481,73.81864145]
[1643342386305,0.25,92.559,92.481,73.81864145]
[1643342386706,0.25,92.559,92.482,42.73007695]
[1643342387511,6.0,92.55,92.482,42.73007695]
[1643342387909,0.25,92.549,92.482,42.73007695]
[1643342388910,0.25,92.559,92.482,42.73007695]
[1643342389711,16.2224,92.59,92.483,2.0733707]
[1643342389910,16.2224,92.59,92.49,12.98]
[1643342390115,16.2224,92.59,92.484,0.25]
[1643342390310,131.2199,92.586,92.484,0.25]
[1643342390511,6.0,92.575,92.484,0.25]
[1643342390910,16.2255,92.56,92.484,0.25]
[1643342391311,16.2255,92.56,92.483,0.25]
[1643342391712,0.25,92.559,92.483,0.25]
[1643342392112,6.0,92.55,92.46,12.98]
[1643342392313,0.25,92.549,92.461,0.25]
[1643342392815,0.25,92.549,92.461,35.71314891]
[1643342394420,0.25,92.549,92.471,6.0]
[1643342394615,0.25,92.549,92.461,35.46314891]
[1643342395615,6.25,92.549,92.461,35.46314891]
[1643342395815,0.25,92.548,92.461,35.46314891]
[1643342396015,0.25,92.548,92.462,0.25]
[1643342397018,108.45,92.548,92.471,6.0]
[1643342397220,0.25,92.548,92.47,12.98]
[1643342397422,6.0,92.544,92.472,0.25]
[1643342397819,0.25,92.543,92.472,0.25]
[1643342398221,6.0,92.54,92.472,0.25]
[1643342398420,0.25,92.539,92.47,12.98]
[1643342399019,0.25,92.539,92.471,0.25]
[1643342399220,6.0,92.54,92.471,0.25]
[1643342399421,16.2286,92.55,92.47,12.98]
[1643342399621,6.0,92.54,92.461,35.46314891]
[1643342399822,16.2311,92.53,92.461,35.46314891]
[1643342400025,6.0,92.54,92.461,35.46314891]
[1643342400222,78.7976,92.569,92.471,6.0]
[1643342400631,0.25,92.568,92.472,8.0733707]
[1643342400822,78.7976,92.569,92.481,34.76675785]
[1643342401023,16.2188,92.61,92.491,6.0]
[1643342401248,4.46909302,92.641,92.5,12.98]
[1643342401446,16.4436,92.665,92.501,150.97745991]
[1643342401643,16.4436,92.665,92.51,6.0]
[1643342401848,150.7408,92.678,92.52,12.98]
[1643342402044,150.7408,92.678,92.53,6.0]
[1643342402247,4.46909302,92.683,92.541,4.88]
[1643342402448,94.81245214,92.648,92.55,162.28]
[1643342402744,4.46909302,92.73,92.601,4.88]
[1643342402946,84.36268358,92.765,92.601,16.4]
[1643342402947,16.1609,92.752,92.601,16.4]
[1643342403146,16.1609,92.752,92.621,4.88]
[1643342403344,16.1609,92.752,92.63,12.98]
[1643342403646,16.1609,92.752,92.64,6.0]
[1643342403847,2.95669142,92.736,92.622,0.25]
[1643342404045,6.0,92.726,92.62,12.98]
[1643342404245,6.0,92.726,92.6,12.98]
[1643342404446,6.0,92.72,92.6,12.98]
[1643342404646,60.0058,92.72,92.6,12.98]
[1643342404845,1.84789547,92.714,92.601,44.1608431]
[1643342405044,6.0,92.704,92.601,44.4108431]
[1643342405344,0.25,92.703,92.601,44.4108431]
[1643342405547,6.25,92.703,92.601,44.4108431]
[1643342406348,24.55142978,92.699,92.601,44.4108431]
[1643342406751,0.25,92.698,92.601,44.4108431]
[1643342407949,2.95669142,92.713,92.601,44.4108431]
[1643342408149,2.95669142,92.728,92.611,6.0]
[1643342408351,4.46909302,92.774,92.62,12.98]
[1643342408549,6.0,92.725,92.63,6.0]
[1643342408749,4.46909302,92.789,92.64,12.98]
[1643342408951,109.17765614,92.735,92.64,22.94]
[1643342409247,109.17765614,92.735,92.65,6.0]
[1643342409450,0.25,92.734,92.65,18.98]
[1643342409650,0.25,92.734,92.651,6.25]
[1643342410052,0.25,92.734,92.66,6.0]
[1643342410249,0.25,92.749,92.661,6.25]
[1643342410449,0.25,92.749,92.661,0.25]
[1643342410650,16.1922,92.75,92.661,0.25]
[1643342411150,16.1922,92.75,92.661,44.4108431]
[1643342411750,45.2957,92.763,92.661,44.4108431]
[1643342412155,6.0,92.749,92.661,44.4108431]
[1643342412350,6.0,92.749,92.661,54.1008431]
[1643342412552,24.2673,92.759,92.671,6.0]
[1643342412751,72.2677,92.779,92.68,12.98]
[1643342412953,72.2677,92.779,92.68,22.71]
[1643342413152,72.2677,92.779,92.69,6.0]
[1643342413361,30.12573771,92.778,92.691,35.21739652]
[1643342414355,72.2677,92.779,92.691,35.21739652]
[1643342414555,72.2677,92.779,92.701,6.0]
[1643342414755,72.2677,92.779,92.702,0.25]
[1643342415355,32.82557889,92.778,92.702,0.25]
[1643342415558,32.82557889,92.778,92.701,6.0]
[1643342415755,0.25,92.777,92.691,34.96739652]
[1643342416155,6.0,92.768,92.691,34.96739652]
[1643342416355,0.25,92.767,92.691,34.96739652]
[1643342417156,0.25,92.767,92.692,0.25]
[1643342417760,0.25,92.777,92.692,0.25]
[1643342417960,6.0,92.768,92.692,0.25]
[1643342418164,111.9,92.752,92.64,12.98]
[1643342418362,2.95669142,92.736,92.6,12.98]
[1643342418566,6.0,92.726,92.6,12.98]
[1643342418762,0.25,92.725,92.6,12.98]
[1643342418963,3.20669142,92.725,92.6,12.98]
[1643342419163,111.9,92.716,92.601,39.90294794]
[1643342419364,0.25,92.715,92.601,39.90294794]
[1643342419564,6.0,92.706,92.601,39.90294794]
[1643342419763,33.07557889,92.705,92.601,39.90294794]
[1643342419963,39.07557889,92.705,92.601,39.90294794]
[1643342420363,8.95669142,92.704,92.601,39.90294794]
[1643342420566,6.0,92.695,92.601,39.90294794]
[1643342420764,0.25,92.694,92.611,6.0]
[1643342420963,0.25,92.694,92.62,12.98]
[1643342421362,0.25,92.694,92.63,6.0]
[1643342421565,0.25,92.694,92.631,6.0]
[1643342421765,0.25,92.694,92.631,48.7736444]
[1643342421963,0.25,92.715,92.64,6.0]
[1643342422367,0.25,92.715,92.641,6.25]
[1643342422869,32.1210996,92.725,92.641,6.25]
[1643342424170,16.1956,92.74,92.641,6.25]
[1643342424370,0.25,92.739,92.641,6.25]
[1643342425272,33.83454004,92.739,92.641,6.25]
[1643342425475,0.25,92.739,92.641,6.25]
[1643342425673,0.25,92.739,92.642,2.07492671]
[1643342425874,0.25,92.748,92.65,6.0]
[1643342426072,0.25,92.748,92.652,6.0]
[1643342426275,0.25,92.748,92.653,0.25]
[1643342426473,0.25,92.748,92.66,6.0]
[1643342426474,29.18827108,92.748,92.66,6.0]
[1643342426675,0.25,92.748,92.661,6.0]
[1643342426872,0.25,92.748,92.662,0.25]
[1643342427075,0.25,92.748,92.664,6.0]
[1643342427273,0.25,92.759,92.665,0.25]
[1643342428096,0.25,92.759,92.671,42.5236444]
[1643342428097,6.0,92.75,92.671,42.5236444]
[1643342428298,2.43153578,92.736,92.671,42.5236444]
[1643342428499,6.0,92.726,92.671,42.5236444]
[1643342428701,14.42,92.726,92.61,12.98]
[1643342428902,111.9,92.724,92.621,6.0]
[1643342429098,6.0,92.714,92.62,6.0]
[1643342429299,6.0,92.714,92.59,6.0]
[1643342429300,16.2023,92.7,92.59,6.0]
[1643342429500,16.2023,92.7,92.59,8.07492671]
[1643342429701,6.0,92.69,92.6,12.98]
[1643342429904,0.25,92.689,92.6,12.98]
[1643342430101,8.95669142,92.689,92.6,12.98]
[1643342430402,0.25,92.688,92.591,40.95670791]
[1643342431301,0.25,92.688,92.601,6.0]
[1643342432002,0.25,92.688,92.591,40.95670791]
[1643342433403,0.25,92.688,92.592,0.25]
[1643342433605,0.25,92.688,92.601,6.0]
[1643342433802,0.25,92.688,92.602,0.25]
[1643342434203,6.0,92.689,92.602,0.25]
[1643342434502,0.25,92.698,92.601,5.75]
[1643342434503,6.0,92.679,92.601,5.75]
[1643342434703,8.89986685,92.685,92.601,5.75]
[1643342434904,0.25,92.678,92.601,5.75]
[1643342435903,0.25,92.684,92.601,5.75]
[1643342436303,0.25,92.709,92.602,0.25]
[1643342436504,6.0,92.7,92.61,12.98]
[1643342436904,0.25,92.699,92.611,0.25]
[1643342437103,6.25,92.699,92.611,44.4362263]
[1643342439509,0.25,92.699,92.611,44.4362263]
[1643342440109,0.25,92.699,92.612,108.2]
[1643342440305,0.25,92.699,92.613,0.25]
[1643342440706,29.89341527,92.7,92.613,0.25]
[1643342441308,2.98501814,92.723,92.613,0.25]
[1643342442010,2.98501814,92.721,92.613,0.25]
[1643342442209,0.25,92.712,92.613,0.25]
[1643342442408,23.8833417,92.712,92.613,0.25]
[1643342442812,23.8833417,92.712,92.611,44.1862263]
[1643342443008,2.95669142,92.711,92.611,152.3862263]
[1643342443210,2.95669142,92.711,92.612,0.25]
[1643342443411,0.25,92.71,92.612,0.25]
[1643342443810,6.0,92.701,92.611,44.1862263]
[1643342444011,6.0,92.699,92.59,12.98]
[1643342444313,3.23615232,92.698,92.602,0.25]
[1643342444515,16.2052,92.68,92.602,0.25]
[1643342444911,6.0,92.67,92.602,0.25]
[1643342445113,16.1044654,92.669,92.602,0.25]
[1643342445313,16.1044654,92.669,92.581,45.83143822]
[1643342445314,16.3544654,92.669,92.581,46.08143822]
[1643342445512,16.3544654,92.669,92.591,6.0]
[1643342445914,16.3544654,92.669,92.592,0.25]
[1643342448913,10.3544654,92.669,92.592,0.25]
[1643342449313,2.98501814,92.693,92.592,0.25]
[1643342449612,16.2012,92.71,92.593,108.2]
[1643342449613,2.98843125,92.696,92.593,108.2]
[1643342449815,2.98843125,92.696,92.592,11.03492671]
[1643342449816,0.25,92.692,92.594,0.25]
[1643342450014,0.25,92.692,92.602,6.0]
[1643342450215,0.25,92.692,92.611,39.61075468]
[1643342450414,0.25,92.692,92.611,50.28075468]
[1643342450614,0.25,92.692,92.621,114.2]
[1643342450813,0.25,92.712,92.622,0.25]
[1643342451415,29.33594593,92.712,92.622,0.25]
[1643342452020,6.0,92.702,92.622,0.25]
[1643342452218,6.0,92.701,92.622,0.25]
[1643342452420,6.0,92.701,92.59,12.98]
[1643342452421,9.23788316,92.701,92.59,12.98]
[1643342452620,6.0,92.698,92.55,2.99469048]
[1643342452820,54.0332,92.68,92.54,12.98]
[1643342453023,6.0,92.67,92.54,12.98]
[1643342453217,2.98501814,92.66,92.54,12.98]
[1643342453422,2.98501814,92.654,92.521,45.27480391]
[1643342453617,6.0,92.644,92.521,45.27480391]
[1643342453818,12.98,92.64,92.521,45.27480391]
[1643342454017,16.2159,92.62,92.531,6.0]
[1643342454216,29.08594593,92.619,92.531,6.0]
[1643342454417,29.33594593,92.619,92.532,0.25]
[1643342454816,0.25,92.619,92.532,0.25]
[1643342455023,0.25,92.619,92.533,2.07492671]
[1643342455417,0.25,92.619,92.543,6.0]
[1643342455617,6.0,92.633,92.543,6.0]
[1643342455917,31.83361466,92.632,92.544,2.32492671]
[1643342456117,31.83361466,92.632,92.555,40.16738899]
[1643342456317,31.83361466,92.632,92.556,0.25]
[1643342456520,31.83361466,92.632,92.556,2.32492671]
[1643342457521,31.83361466,92.632,92.556,0.25]
[1643342458117,31.83361466,92.632,92.556,2.32492671]
[1643342459219,31.83361466,92.632,92.556,2.07492671]
[1643342459421,16.2145,92.63,92.554,6.0]
[1643342459618,31.83361466,92.632,92.541,6.0]
[1643342459619,6.0,92.62,92.541,6.0]
[1643342459823,0.25,92.619,92.541,6.0]
[1643342460022,0.25,92.619,92.51,12.98]
[1643342460023,0.25,92.619,92.52,6.0]
[1643342460622,6.0,92.61,92.521,43.44760155]
[1643342460823,0.25,92.609,92.521,43.44760155]
[1643342461020,16.2196,92.6,92.521,43.44760155]
[1643342461420,2.95669142,92.632,92.522,2.07816436]
[1643342461622,6.0,92.622,92.522,10.90816436]
[1643342462122,46.5133,92.647,92.523,2.07816436]
[1643342462123,16.2145,92.63,92.523,2.07816436]
[1643342462320,16.2145,92.63,92.523,2.32816436]
[1643342462526,26.43691134,92.619,92.523,2.32816436]
[1643342462723,26.43691134,92.619,92.523,0.25]
[1643342462921,6.0,92.609,92.521,43.44760155]
[1643342463123,6.0,92.609,92.522,0.25]
[1643342463423,0.25,92.608,92.522,0.25]
[1643342463821,0.25,92.608,92.523,2.0717419]
[1643342464024,0.25,92.608,92.533,6.0]
[1643342464422,0.25,92.618,92.534,0.25]
[1643342464623,0.25,92.629,92.534,0.25]
[1643342464821,28.99688986,92.629,92.534,0.25]
[1643342465025,16.2136,92.63,92.535,2.0717419]
[1643342465223,16.2136,92.63,92.54,12.98]
[1643342465424,16.2136,92.63,92.545,6.0]
[1643342465624,16.2136,92.63,92.55,6.0]
[1643342465823,16.2136,92.63,92.551,0.25]
[1643342466023,16.2136,92.63,92.551,48.24459135]
[1643342466426,16.2098,92.65,92.551,48.24459135]
[1643342466724,2.98501814,92.685,92.552,2.0717419]
[1643342466925,47.4217,92.695,92.552,30.9891722]
[1643342467124,47.4217,92.695,92.562,6.0]
[1643342467326,47.4217,92.695,92.571,38.33200128]
[1643342467327,27.91424147,92.694,92.571,38.33200128]
[1643342467527,27.91424147,92.694,92.581,6.0]
[1643342467724,27.91424147,92.694,92.591,40.32726064]
[1643342468125,27.91424147,92.694,92.601,6.0]
[1643342468326,16.1994,92.71,92.602,0.25]
[1643342468526,16.1994,92.71,92.61,12.98]
[1643342468748,2.98501814,92.736,92.61,26.47]
[1643342469027,2.98501814,92.749,92.621,108.2]
[1643342469226,2.98501814,92.749,92.63,12.98]
[1643342469427,16.1925,92.75,92.631,6.0]
[1643342469627,16.1925,92.75,92.641,8.2192923]
[1643342469829,16.1925,92.75,92.65,12.98]
[1643342470034,41.56036808,92.739,92.66,6.0]